bitfinex/quotes_SOLUSD_20240808
["timestamp","ask_amount","ask_price","bid_price","bid_amount"]
[1723096844067,15.0653,153.25,153.2,28.65]
[1723096844362,15.0653,153.25,153.21,1.30521124]
[1723096844558,15.0653,153.25,153.21,46.30521124]
[1723096844743,15.0653,153.25,153.22,28.65]
[1723096846760,15.0653,153.25,153.24,28.65]
[1723096847139,15.0653,153.25,153.24,73.65]
[1723096847760,6.5535,153.26,153.24,28.65]
[1723096849148,15.737,153.29,153.24,28.65]
[1723096849454,15.737,153.29,153.21,1.30467102]
[1723096849455,15.737,153.29,153.27,28.65]
[1723096849969,15.737,153.29,153.25,28.65]
[1723096850467,15.737,153.29,153.23,28.65]
[1723096851258,15.737,153.29,153.21,28.65]
[1723096852850,15.737,153.29,153.23,28.65]
[1723096853564,15.737,153.29,153.21,28.65]
[1723096854568,15.737,153.29,153.19,28.65]
[1723096854752,0.34,153.28,153.19,28.65]
[1723096855562,15.737,153.29,153.21,28.65]
[1723096855763,15.737,153.29,153.22,1.30517411]
[1723096856364,15.737,153.29,153.21,28.65]
[1723096856859,0.17,153.28,153.21,28.65]
[1723096857158,0.17,153.28,153.17,28.65]
[1723096857159,6.1557,153.26,153.17,28.65]
[1723096857463,6.3825,153.24,153.15,33.67773821]
[1723096857662,16.1454,153.23,153.15,28.65]
[1723096857853,0.17,153.22,153.13,28.65]
[1723096858756,15.9754,153.2,153.11,28.65]
[1723096860878,15.9754,153.2,153.13,28.65]
[1723096861577,0.65303991,153.14,153.13,28.65]
[1723096861758,0.65303991,153.14,153.1,0.17]
[1723096861958,0.65303991,153.14,153.1,45.34]
[1723096862384,0.65303991,153.14,153.11,1.30587034]
[1723096863081,0.44563991,153.14,153.11,1.30587034]
[1723096863283,0.40413991,153.14,153.12,0.34]
[1723096863459,0.32113991,153.14,153.12,0.34]
[1723096866482,15.4308,153.24,153.19,45.0]
[1723096866697,15.4308,153.24,153.15,36.89]
[1723096866980,15.4308,153.24,153.14,1.30508284]
[1723096866981,15.4308,153.24,153.14,0.34]
[1723096867284,26.1525,153.23,153.09,49.89557227]
[1723096867594,16.0428,153.22,153.09,49.89557227]
[1723096869692,16.0428,153.22,153.1,0.17]
[1723096869869,16.0428,153.22,153.1,46.64572037]
[1723096870959,16.0428,153.22,153.1,45.34]
[1723096871790,16.0428,153.22,153.09,48.70554644]
[1723096871791,15.1467,153.2,153.09,8.09373883]
[1723096873285,15.1467,153.2,153.1,45.34]
[1723096873482,15.1467,153.2,153.11,1.305857]
[1723096874461,6.3223,153.19,153.1,45.0]
[1723096874662,6.3223,153.19,153.06,36.89]
[1723096874862,6.6231,153.16,153.06,36.89]
[1723096876470,16.5805,153.15,153.05,7.61373527]
[1723096876665,6.2966,153.14,153.05,2.12927319]
[1723096877289,6.2966,153.14,153.05,0.8228107]
[1723096877664,15.5981,153.13,153.05,0.8228107]
[1723096878292,6.3408,153.1,153.05,0.8228107]
[1723096878704,6.3459,153.08,152.97,6.79110871]
[1723096878995,16.5271,153.07,152.97,6.79110871]
[1723096879366,16.5271,153.07,152.98,1.30700674]
[1723096879885,16.5271,153.07,152.97,6.79110871]
[1723096880699,15.2863,153.05,152.93,5.02773821]
[1723096881195,15.2863,153.05,152.89,6.2323]
[1723096881196,6.205,153.04,152.92,2.70548287]
[1723096881692,3.67e-05,152.93,152.92,1.30728732]
[1723096882188,3.67e-05,152.93,152.91,44.98249669]
[1723096882392,3.67e-05,152.93,152.91,38.19746843]
[1723096882699,3.67e-05,152.93,152.91,44.98205483]
[1723096882901,3.67e-05,152.93,152.91,38.19746843]
[1723096884493,3.67e-05,152.93,152.92,45.34]
[1723096885067,3.67e-05,152.93,152.9,0.8228107]
[1723096885672,20.0,153.07,152.9,0.8228107]
[1723096885673,21.5239,153.05,152.91,56.51]
[1723096885898,21.5239,153.05,152.96,36.89]
[1723096886597,21.5239,153.05,152.97,1.30663112]
[1723096886893,21.5239,153.05,153.0,36.89]
[1723096887097,6.2399,153.09,153.01,46.64668873]
[1723096887270,6.2399,153.09,153.02,1.30650627]
[1723096887471,6.2399,153.09,153.03,0.34]
[1723096887666,6.2399,153.09,153.01,45.0]
[1723096887971,6.2399,153.09,153.02,1.47675724]
[1723096888171,6.2399,153.09,153.01,45.0]
[1723096888669,6.2399,153.09,153.02,1.30625851]
[1723096888865,6.2399,153.09,153.03,37.06]
[1723096889094,6.3669,153.25,153.06,36.89]
[1723096889300,6.3669,153.22,153.07,46.64583182]
[1723096889600,6.3693,153.21,153.08,1.30574651]
[1723096889779,6.3693,153.21,153.04,36.89]
[1723096890103,6.3693,153.19,153.05,66.64557587]
[1723096890397,6.3693,153.19,153.09,36.89]
[1723096890579,6.3693,153.19,153.1,46.64514948]
[1723096890778,6.3693,153.19,153.12,36.89]
[1723096890986,6.3693,153.19,153.13,45.34]
[1723096891390,6.3693,153.19,153.13,45.0]
[1723096891594,6.3693,153.19,153.12,36.89]
[1723096891793,6.3693,153.19,153.09,36.89]
[1723096891980,6.3693,153.19,153.1,65.34]
[1723096893276,6.3693,153.19,153.11,1.30559118]
[1723096893483,6.3693,153.19,153.1,65.34]
[1723096895207,6.3693,153.19,153.1,45.34]
[1723096895887,6.3693,153.19,153.1,46.64551742]
[1723096896083,6.3693,153.19,153.1,45.34]
[1723096896586,6.3693,153.19,153.1,45.17]
[1723096896884,6.3693,153.19,153.1,45.0]
[1723096897292,6.3693,153.19,153.11,1.30542633]
[1723096897501,6.3693,153.19,153.1,45.17]
[1723096897887,389.1,153.18,153.09,36.89]
[1723096899288,389.1,153.18,153.1,46.62513442]
[1723096899604,389.1,153.18,153.1,45.0]
[1723096899810,389.1,153.18,153.09,36.89]
[1723096900000,389.1,153.18,153.1,46.30601893]
[1723096900399,389.1,153.18,153.09,36.89]
[1723096900912,389.1,153.18,153.05,5.02773821]
[1723096901141,389.1,153.17,153.06,20.0]
[1723096901305,15.8574,153.16,153.05,5.02773821]
[1723096901513,0.65338125,153.06,153.05,5.02773821]
[1723096901691,0.65338125,153.06,153.01,36.89]
[1723096901892,0.65338125,153.06,153.02,1.30652903]
[1723096902600,0.65338125,153.06,153.02,1.30649899]
[1723096903502,0.65338125,153.06,153.04,36.89]
[1723096903699,0.65338125,153.06,153.05,46.6463602]
[1723096903898,0.65338125,153.06,153.05,45.34]
[1723096905306,0.65338125,153.06,153.05,46.64638631]
[1723096905507,0.65338125,153.06,153.05,65.34]
[1723096905895,0.65338125,153.06,153.05,66.30627018]
[1723096906099,0.65338125,153.06,153.05,65.0]
[1723096906316,0.65338125,153.06,153.04,38.19644371]
[1723096906618,0.65338125,153.06,153.05,1.30635834]
[1723096906818,0.65338125,153.06,153.04,36.89]
[1723096907511,0.65338125,153.06,153.05,1.30648005]
[1723096907735,0.65338125,153.06,153.03,0.17]
[1723096907898,0.65338125,153.06,153.02,0.17]
[1723096908098,0.65338125,153.06,153.02,45.17]
[1723096909213,0.65338125,153.06,153.01,36.89]
[1723096910005,0.65338125,153.06,153.02,1.30657222]
[1723096910710,0.65338125,153.06,153.03,0.17]
[1723096910892,0.65338125,153.06,153.01,36.89]
[1723096911298,0.65338125,153.06,152.97,6.7814437]
[1723096911903,0.65338125,153.06,152.96,36.89]
[1723096912101,15.7825,153.05,152.93,36.89]
[1723096912324,16.1225,153.05,152.93,43.67562656]
[1723096912805,6.56,153.04,152.93,43.67562656]
[1723096913208,0.17,153.03,152.93,43.67562656]
[1723096913411,16.0775,153.02,152.9,37.7128107]
[1723096913609,6.3998,153.01,152.9,37.7128107]
[1723096914630,6.3998,153.01,152.91,20.0]
[1723096915426,0.34,153.0,152.91,20.0]
[1723096918000,22.2881,152.99,152.9,0.8228107]
[1723096919332,22.2881,152.99,152.91,1.30754311]
[1723096919501,22.2881,152.99,152.9,0.8228107]
[1723096920422,22.2881,152.99,152.9,2.13045058]
[1723096921143,22.2881,152.99,152.91,1.30764042]
[1723096921336,22.2881,152.99,152.92,0.34]
[1723096921648,8.125e-05,152.93,152.92,1.64740007]
[1723096921929,8.125e-05,152.93,152.92,21.64740007]
[1723096922130,8.125e-05,152.93,152.92,66.64740007]
[1723096922304,8.125e-05,152.93,152.92,65.34]
[1723096922797,8.125e-05,152.93,152.92,20.0]
[1723096923224,8.125e-05,152.93,152.91,21.30720432]
[1723096923401,8.125e-05,152.93,152.91,20.0]
[1723096923603,8.125e-05,152.93,152.92,1.30695404]
[1723096923802,8.125e-05,152.93,152.9,37.7128107]
[1723096924408,8.125e-05,152.93,152.9,0.8228107]
[1723096924635,15.1633,152.92,152.9,0.8228107]
[1723096926404,14.6513,152.92,152.9,0.8228107]
[1723096930036,14.6513,152.92,152.9,2.13066302]
[1723096930239,14.6513,152.92,152.9,0.8228107]
[1723096933727,14.6513,152.92,152.91,28.77]
[1723096934112,14.6513,152.92,152.9,0.8228107]
[1723096934317,14.6513,152.92,152.9,29.5928107]
[1723096935341,8.125e-05,152.93,152.74,0.8228107]
[1723096935342,22.7534,152.9,152.74,0.8228107]
[1723096935646,16.5537,152.88,152.78,28.77]
[1723096936218,16.5537,152.88,152.82,28.77]
[1723096937748,16.5537,152.88,152.77,37.04]
[1723096937922,16.5537,152.88,152.78,20.0]
[1723096938743,6.2776,152.87,152.78,20.0]
[1723096938945,6.4476,152.87,152.75,6.77268113]
[1723096939244,6.4476,152.87,152.76,1.3088322]
[1723096939458,6.2776,152.87,152.75,6.77268113]
[1723096939643,15.3281,152.86,152.75,6.77268113]
[1723096939822,0.17,152.85,152.75,6.77268113]
[1723096940016,15.3281,152.86,152.76,1.30900934]
[1723096940642,15.3281,152.86,152.75,6.77203214]
[1723096941236,6.6573,152.85,152.74,0.8228107]
[1723096941433,15.7709,152.84,152.74,0.8228107]
[1723096941950,15.4309,152.81,152.74,0.8228107]
[1723096942256,6.4127,152.8,152.74,0.8228107]
[1723096942433,389.27,152.79,152.74,0.8228107]
[1723096942843,21.9132,152.77,152.68,6.77371286]
[1723096943146,21.9132,152.77,152.64,38.34957839]
[1723096943321,0.34,152.76,152.65,1.30957839]
[1723096943521,0.34,152.76,152.64,6.77458459]
[1723096944348,0.34,152.76,152.65,1.30974575]
[1723096944555,0.34,152.76,152.65,21.30974575]
[1723096944745,0.34,152.76,152.65,20.0]
[1723096945124,21.9132,152.77,152.65,20.0]
[1723096945338,21.9132,152.77,152.68,37.04]
[1723096945546,21.9132,152.77,152.69,1.47937434]
[1723096945846,21.9132,152.77,152.68,37.04]
[1723096946047,21.9132,152.77,152.67,0.17]
[1723096946253,21.9132,152.77,152.66,45.17]
[1723096946558,21.9132,152.77,152.67,20.17]
[1723096946728,21.9132,152.77,152.68,45.0]
[1723096947143,21.9132,152.77,152.68,46.30955632]
[1723096948552,21.9132,152.77,152.68,45.0]
[1723096950247,45.0,152.76,152.64,6.77458459]
[1723096950442,21.5152,152.75,152.64,6.77458459]
[1723096950630,0.34,152.74,152.64,6.77458459]
[1723096951432,16.2588,152.72,152.59,0.8228107]
[1723096951732,6.3314,152.7,152.62,37.04]
[1723096952242,6.3314,152.7,152.59,0.8228107]
[1723096952243,6.3314,152.7,152.65,37.04]
[1723096952548,6.3314,152.7,152.66,1.30967125]
[1723096952854,6.3314,152.7,152.67,0.34]
[1723096953750,6.3314,152.7,152.66,46.30967125]
[1723096953959,6.3314,152.7,152.66,45.0]
[1723096957039,6.3314,152.7,152.59,0.8228107]
[1723096957258,16.237,152.68,152.59,0.8228107]
[1723096957457,6.5165,152.67,152.59,0.8228107]
[1723096957764,65.0,152.66,152.59,0.8228107]
[1723096958062,6.1765,152.63,152.42,3.95603121]
[1723096958266,6.1765,152.61,152.45,37.04]
[1723096958446,6.1765,152.61,152.42,3.95603121]
[1723096958447,15.9977,152.59,152.44,38.26592687]
[1723096958762,0.34,152.58,152.45,1.31133218]
[1723096958961,15.9977,152.59,152.47,37.04]
[1723096959146,15.9977,152.59,152.48,1.31107417]
[1723096959351,0.34,152.58,152.44,39.17388487]
[1723096959556,0.34,152.58,152.44,45.94383253]
[1723096959950,15.9977,152.59,152.44,45.94383253]
[1723096960154,15.9977,152.59,152.44,39.17388487]
[1723096960537,0.34,152.58,152.44,39.17388487]
[1723096960741,0.34,152.58,152.45,20.0]
[1723096961040,6.0703,152.57,152.44,37.8628107]
[1723096961252,20.34,152.56,152.44,0.8228107]
[1723096961652,8.125e-05,152.45,152.44,0.8228107]
[1723096962180,6.0703,152.57,152.44,0.8228107]
[1723096962465,6.0703,152.57,152.44,37.8628107]
[1723096962774,6.0703,152.57,152.5,37.04]
[1723096963746,6.0703,152.57,152.51,1.31071172]
[1723096963964,6.0703,152.57,152.5,37.21]
[1723096964162,6.0703,152.57,152.51,45.0]
[1723096964963,6.0703,152.57,152.51,1.31046693]
[1723096965168,6.0703,152.57,152.45,1.31070653]
[1723096965378,6.0703,152.57,152.44,37.8628107]
[1723096965964,6.0703,152.57,152.45,1.25750354]
[1723096966265,6.2274,152.55,152.45,1.3112103]
[1723096966473,6.2274,152.55,152.46,1.31113725]
[1723096966846,6.2274,152.55,152.45,1.31157038]
[1723096967167,6.2274,152.55,152.46,1.31118667]
[1723096967352,6.2274,152.55,152.44,37.8628107]
[1723096967950,6.2274,152.55,152.45,1.31145346]
[1723096968153,6.2274,152.55,152.46,1.31136744]
[1723096968682,6.6008,152.53,152.44,0.8228107]
[1723096969052,6.6008,152.53,152.45,1.31158446]
[1723096969243,6.6008,152.53,152.46,1.31141427]
[1723096969448,6.6008,152.53,152.44,2.13436634]
[1723096969673,6.6008,152.53,152.44,0.8228107]
[1723096970175,16.5972,152.52,152.44,0.8228107]
[1723096970374,6.3337,152.51,152.44,0.8228107]
[1723096970961,6.3337,152.51,152.45,1.31141306]
[1723096971144,6.3337,152.51,152.45,38.35141306]
[1723096971847,6.3337,152.51,152.46,45.17]
[1723096972041,6.3337,152.51,152.47,1.31136172]
[1723096972951,6.3337,152.51,152.48,0.17]
[1723096973281,6.3337,152.51,152.46,45.17]
[1723096973470,6.3337,152.51,152.47,0.17]
[1723096973671,6.3337,152.51,152.47,1.48122475]
[1723096973849,6.3337,152.51,152.47,0.17]
[1723096974050,6.3337,152.51,152.47,1.48123507]
[1723096974245,6.3337,152.51,152.48,1.31129245]
[1723096974445,6.3337,152.51,152.46,45.17]
[1723096975165,6.3337,152.51,152.45,1.31131398]
[1723096975372,6.3337,152.51,152.44,0.8228107]
[1723096976749,15.1867,152.5,152.44,0.8228107]
[1723096976957,6.0732,152.49,152.44,0.8228107]
[1723096977960,6.0732,152.49,152.38,1.31213124]
[1723096978356,6.0732,152.49,152.38,1.31197219]
[1723096978877,6.0732,152.49,152.39,1.31188548]
[1723096979071,6.0732,152.49,152.37,1.31208398]
[1723096979275,6.0732,152.49,152.34,37.04]
[1723096979276,15.2923,152.48,152.34,37.04]
[1723096979477,6.6262,152.47,152.35,1.11690881]
[1723096979676,6.6262,152.47,152.35,1.31223321]
[1723096979854,6.6262,152.47,152.36,1.31223321]
[1723096980061,6.6262,152.47,152.33,1.31228679]
[1723096980256,6.6262,152.47,152.33,37.04]
[1723096980461,6.6262,152.47,152.33,38.35231867]
[1723096981273,6.6262,152.47,152.33,37.04]
[1723096981585,0.65646951,152.34,152.33,37.04]
[1723096981887,6.951e-05,152.34,152.33,38.35234872]
[1723096982186,6.6262,152.47,152.33,58.35234872]
[1723096982477,6.6262,152.47,152.37,37.04]
[1723096982678,6.6262,152.47,152.38,1.3118943]
[1723096983060,6.6262,152.47,152.39,0.17]
[1723096983286,6.6262,152.47,152.39,1.65173377]
[1723096983577,6.6262,152.47,152.4,37.04]
[1723096983780,6.6262,152.47,152.41,45.17]
[1723096985082,15.4409,152.53,152.46,37.04]
[1723096985257,6.2499,152.55,152.47,46.65094368]
[1723096985455,6.2499,152.55,152.47,45.0]
[1723096985658,6.2499,152.55,152.43,37.04]
[1723096985855,6.2499,152.55,152.44,0.17]
[1723096986077,15.1126,152.54,152.4,37.04]
[1723096986263,21.4003,152.54,152.41,1.31182416]
[1723096986876,21.4003,152.54,152.43,37.04]
[1723096987083,21.4003,152.54,152.43,38.35118837]
[1723096987289,21.4003,152.54,152.43,37.04]
[1723096987463,21.4003,152.54,152.44,45.34]
[1723096988553,21.4003,152.54,152.44,45.17]
[1723096988754,21.4003,152.54,152.45,45.0]
[1723096988969,21.4003,152.54,152.46,0.17]
[1723096989159,21.4003,152.54,152.45,0.17]
[1723096989160,21.4003,152.54,152.45,1.65130157]
[1723096989383,21.4003,152.54,152.45,0.34]
[1723096989554,21.4003,152.54,152.45,0.17]
[1723096989764,21.4003,152.54,152.44,45.0]
[1723096989965,21.4003,152.54,152.45,0.34]
[1723096990384,21.4003,152.54,152.45,0.17]
[1723096990583,21.4003,152.54,152.38,1.31120929]
[1723096990584,21.4003,152.54,152.4,37.04]
[1723096990887,21.4003,152.54,152.41,1.31162946]
[1723096991460,21.4003,152.54,152.43,37.04]
[1723096991665,21.4003,152.54,152.43,38.35130774]
[1723096991957,21.4003,152.54,152.43,37.04]
[1723096992285,21.4003,152.54,152.4,1.31151988]
[1723096992589,6.0471,152.5,152.35,6.76700664]
[1723096992761,6.0471,152.48,152.36,38.35199292]
[1723096992964,6.0471,152.48,152.35,1.31219846]
[1723096993287,6.0471,152.48,152.36,1.31214213]
[1723096993460,6.0471,152.48,152.32,43.81035722]
[1723096993461,6.0471,152.48,152.33,1.31210283]
[1723096993874,6.5257,152.46,152.32,45.12264846]
[1723096994073,13.0848,152.46,152.32,37.04]
[1723096994376,6.5257,152.46,152.33,1.31239729]
[1723096994976,6.5257,152.46,152.32,45.12674151]
[1723096995180,6.5257,152.46,152.33,1.31231391]
[1723096995887,6.5257,152.46,152.32,43.81447832]
[1723096996080,6.5257,152.46,152.33,1.3123986]
[1723096996279,6.5257,152.46,152.34,0.17]
[1723096996481,6.5257,152.46,152.29,0.8228107]
[1723096996482,6.23,152.42,152.29,0.8228107]
[1723096996786,6.23,152.42,152.3,1.31266732]
[1723096997094,22.6947,152.41,152.29,0.8228107]
[1723096997279,22.6947,152.41,152.3,1.31279403]
[1723096997485,23.0261,152.41,152.29,0.8228107]
[1723096997790,26.5616,152.4,152.29,0.8228107]
[1723096997978,27.6202,152.39,152.29,0.8228107]
[1723096998181,6.3773,152.38,152.29,0.8228107]
[1723096998678,6.3773,152.38,152.29,2.13544541]
[1723096999077,6.3773,152.38,152.29,0.8228107]
[1723096999467,6.3773,152.38,152.3,1.31300806]
[1723097000166,6.3773,152.38,152.29,0.8228107]
[1723097000899,15.0242,152.39,152.29,0.8228107]
[1723097000900,16.5252,152.35,152.29,0.8228107]
[1723097001214,6.1325,152.34,152.24,6.76545473]
[1723097001369,20.0,152.33,152.24,6.76545473]
[1723097001569,0.6568576,152.25,152.24,6.76545473]
[1723097001898,6.6952576,152.25,152.24,6.76545473]
[1723097002267,6.6952576,152.25,152.13,37.8628107]
[1723097002494,6.6952576,152.25,152.14,1.31384351]
[1723097002679,6.6952576,152.25,152.13,39.17665421]
[1723097003078,6.6952576,152.25,152.13,45.94462696]
[1723097003482,6.6952576,152.25,152.13,7.59078345]
[1723097003688,6.6952576,152.25,152.13,0.8228107]
[1723097003884,6.6952576,152.25,152.14,1.25497404]
[1723097004095,6.6952576,152.25,152.13,8.8491642]
[1723097005293,6.6952576,152.25,152.14,56.66]
[1723097005495,6.6952576,152.25,152.15,1.31359586]
[1723097005700,6.6952576,152.25,152.16,0.34]
[1723097005998,6.6952576,152.25,152.17,1.31359928]
[1723097006227,6.6952576,152.25,152.16,0.34]
[1723097006228,6.6952576,152.25,152.18,1.65359934]
[1723097006406,6.6952576,152.25,152.19,0.17]
[1723097006704,6.6952576,152.25,152.18,1.31344076]
[1723097008177,0.6568576,152.25,152.2,37.04]
[1723097008378,5.76e-05,152.25,152.23,37.04]
[1723097008600,5.76e-05,152.25,152.24,1.65304248]
[1723097008785,5.76e-05,152.25,152.24,45.34]
[1723097010294,5.76e-05,152.25,152.24,82.38]
[1723097010506,6.5265,152.33,152.24,139.04]
[1723097010694,6.5265,152.33,152.28,37.04]
[1723097011009,6.5265,152.33,152.29,46.65234956]
[1723097011315,6.5265,152.33,152.29,45.34]
[1723097011500,6.5265,152.33,152.29,45.17]
[1723097011893,6.5265,152.33,152.25,1.31287002]
[1723097012218,6.5265,152.33,152.26,0.34]
[1723097012508,6.5265,152.33,152.25,45.0]
[1723097012818,6.5265,152.33,152.22,1.3130843]
[1723097013114,6.5265,152.33,152.23,0.17]
[1723097013917,6.5265,152.33,152.18,1.31308476]
[1723097014126,6.5265,152.33,152.19,56.66]
[1723097014289,6.5265,152.33,152.25,37.04]
[1723097014616,6.5265,152.33,152.26,1.3128231]
[1723097014910,6.5265,152.33,152.27,1.31273688]
[1723097015114,6.5265,152.33,152.26,45.0]
[1723097016111,6.5265,152.33,152.27,1.31292046]
[1723097016312,6.5265,152.33,152.28,0.17]
[1723097017095,6.5265,152.33,152.27,1.65283693]
[1723097017289,6.5265,152.33,152.28,37.04]
[1723097017484,15.9072,152.36,152.29,46.65266698]
[1723097017784,15.9072,152.36,152.3,1.31257058]
[1723097017987,15.9072,152.36,152.31,0.17]
[1723097018188,15.9072,152.36,152.31,0.34]
[1723097018705,6.5498,152.37,152.32,1.3125766]
[1723097018914,16.3626,152.4,152.34,37.04]
[1723097019104,253.6,152.52,152.34,37.04]
[1723097019105,16.3626,152.45,152.37,37.04]
[1723097019290,16.3626,152.45,152.38,46.65170148]
[1723097020206,16.3626,152.45,152.39,1.31178046]
[1723097020407,16.3626,152.45,152.4,0.34]
[1723097020814,16.3626,152.45,152.4,0.17]
[1723097020993,16.3626,152.45,152.39,0.34]
[1723097021317,16.3626,152.45,152.39,0.17]
[1723097021523,0.65621104,152.4,152.39,0.17]
[1723097021892,0.62721104,152.4,152.39,0.17]
[1723097022713,0.57591104,152.4,152.39,0.17]
[1723097023300,0.57591104,152.4,152.39,0.34]
[1723097024298,0.57591104,152.4,152.39,0.17]
[1723097024508,0.57591104,152.4,152.33,1.31190516]
[1723097025112,0.57591104,152.4,152.33,20.93190516]
[1723097025713,0.57591104,152.4,152.34,20.0]
[1723097025920,0.57591104,152.4,152.29,37.04]
[1723097025921,15.9305,152.39,152.29,37.04]
[1723097026098,15.9305,152.39,152.3,1.312371]
[1723097026296,6.5636,152.38,152.3,1.312371]
[1723097026722,6.5636,152.38,152.3,1.31248783]
[1723097027926,0.57591104,152.4,152.33,37.04]
[1723097028109,0.57591104,152.4,152.34,1.31210016]
[1723097028306,0.57591104,152.4,152.35,0.17]
[1723097028523,0.57591104,152.4,152.34,45.17]
[1723097028704,0.57591104,152.4,152.3,37.04]
[1723097029016,0.57591104,152.4,152.31,1.31232944]
[1723097030926,0.57591104,152.4,152.32,0.17]
[1723097031125,0.57591104,152.4,152.33,1.3121344]
[1723097031338,0.57591104,152.4,152.34,0.17]
[1723097031625,0.57591104,152.4,152.32,0.17]
[1723097031821,0.57591104,152.4,152.32,0.34]
[1723097032203,0.57591104,152.4,152.31,1.31238331]
[1723097032404,0.57591104,152.4,152.3,38.35249764]
[1723097032604,0.57591104,152.4,152.31,0.17]
[1723097032824,0.57591104,152.4,152.31,1.48241282]
[1723097034029,21.769,152.39,152.22,6.75317175]
[1723097034219,6.1929,152.38,152.24,1.312773]
[1723097035601,6.1929,152.38,152.25,0.17]
[1723097035808,16.3318,152.37,152.24,1.31300338]
[1723097036203,16.3318,152.37,152.25,37.04]
[1723097036399,16.3318,152.37,152.26,1.31271031]
[1723097036614,16.3318,152.37,152.27,1.3126241]
[1723097037341,16.3318,152.37,152.28,37.38]
[1723097037503,16.3318,152.37,152.29,46.31256039]
[1723097037699,16.3318,152.37,152.3,1.65256039]
[1723097040531,6.1929,152.38,152.31,56.66]
[1723097040719,0.57591104,152.4,152.3,1.65256039]
[1723097040720,0.10141104,152.4,152.37,37.04]
[1723097040921,6.3779,152.46,152.38,46.6517135]
[1723097041133,6.2085,152.5,152.4,56.66]
[1723097041307,6.2085,152.5,152.43,56.66]
[1723097041508,22.2955,152.58,152.46,37.04]
[1723097041702,22.2955,152.58,152.47,1.65093346]
[1723097042018,22.2955,152.58,152.49,37.04]
[1723097042322,22.2955,152.58,152.5,45.34]
[1723097043631,22.2955,152.58,152.43,37.04]
[1723097043806,389.1,152.57,152.44,45.17]
[1723097044004,395.6544,152.57,152.39,65.49]
[1723097044204,22.2955,152.58,152.32,45.49]
[1723097044205,409.1,152.56,152.37,19.62]
[1723097044430,409.1,152.56,152.38,1.31158175]
[1723097044609,409.1,152.56,152.4,19.62]
[1723097044927,389.1,152.56,152.41,1.31127122]
[1723097045526,389.1,152.56,152.42,0.17]
[1723097045705,389.1,152.56,152.43,20.93111816]
[1723097045907,389.1,152.56,152.44,64.79]
[1723097046125,389.1,152.56,152.45,1.31097383]
[1723097046431,389.1,152.56,152.46,0.17]
[1723097046627,389.1,152.57,152.46,1.48113159]
[1723097046926,389.1,152.57,152.47,0.17]
[1723097047506,389.1,152.57,152.48,1.3111132]
[1723097047827,389.1,152.57,152.49,0.17]
[1723097048035,389.1,152.57,152.46,0.17]
[1723097048211,20.0,152.56,152.37,45.49]
[1723097048411,395.6556,152.55,152.33,19.62]
[1723097048606,20.0,152.54,152.33,19.62]
[1723097048812,20.0,152.54,152.36,65.11]
[1723097049031,20.0,152.54,152.37,1.31145879]
[1723097049233,389.1,152.55,152.41,19.62]
[1723097049425,389.1,152.55,152.42,1.31102857]
[1723097049609,389.1,152.55,152.43,1.31099954]
[1723097050116,389.1,152.55,152.4,45.49]
[1723097050318,389.1,152.55,152.41,0.17]
[1723097050912,6.5271,152.53,152.36,45.49]
[1723097051211,6.5271,152.53,152.37,1.31108921]
[1723097051421,15.2309,152.52,152.37,1.31108921]
[1723097051934,389.1,152.51,152.37,1.31108921]
[1723097052106,26.5577,152.5,152.32,45.49]
[1723097052308,6.2701,152.49,152.33,1.31198909]
[1723097052608,6.2701,152.49,152.3,6.76388246]
[1723097052609,15.9687,152.47,152.3,6.76388246]
[1723097052914,20.0,152.46,152.31,20.93221364]
[1723097053230,15.9687,152.47,152.31,20.93221364]